[Event "November 21 Early 2023"]
[Site "https://www.chess.com"]
[Date "2023.11.21"]
[Round "2"]
[White "Arslanov, Shamil"]
[Black "Demchenko, Anton"]
[Result "0-1"]
[Board "14"]
[TimeControl "180+1"]
[WhiteFideId "4192826"]
[BlackFideId "4160258"]
[WhiteElo "2326"]
[BlackElo "2545"]
[WhiteTeam "RUS"]
[BlackTeam "SLO"]
[WhiteClock "0:00:00"]
[BlackClock "0:00:35"]

1. d4 {[%clk 0:02:59]}  Nf6 {[%clk 0:02:59]} 2. f3 {[%clk 0:02:59]}  d5 {[%clk 0:02:59]} 3. e4 {[%clk 0:03:00]}  dxe4 {[%clk 0:02:55]} 4. Nc3 {[%clk 0:03:00]}  e5 {[%clk 0:02:48]} 5. dxe5 {[%clk 0:03:00]}  Qxd1+ {[%clk 0:02:45]} 6. Kxd1 {[%clk 0:03:01]}  Nfd7 {[%clk 0:02:40]} 7. Nd5 {[%clk 0:03:01]}  Kd8 {[%clk 0:02:14]} 8. Bg5+ {[%clk 0:03:00]}  f6 {[%clk 0:02:14]} 9. exf6 {[%clk 0:02:59]}  gxf6 {[%clk 0:02:15]} 10. Nxf6 {[%clk 0:03:00]}  Be7 {[%clk 0:02:15]} 11. Nxe4 {[%clk 0:03:00]}  Nc6 {[%clk 0:02:05]} 12. c3 {[%clk 0:02:59]}  Bxg5 {[%clk 0:01:57]} 13. Nxg5 {[%clk 0:02:59]}  Nde5 {[%clk 0:01:58]} 14. Kd2 {[%clk 0:02:18]}  h6 {[%clk 0:01:53]} 15. Ne4 {[%clk 0:02:16]}  Bf5 {[%clk 0:01:53]} 16. Re1 {[%clk 0:02:12]}  Kc8 {[%clk 0:01:53]} 17. h3 {[%clk 0:01:52]}  Re8 {[%clk 0:01:38]} 18. g4 {[%clk 0:01:03]}  Bxe4 {[%clk 0:01:38]} 19. fxe4 {[%clk 0:00:58]}  Kd7 {[%clk 0:01:26]} 20. Kc2 {[%clk 0:00:50]}  Rf8 {[%clk 0:01:17]} 21. Rh2 {[%clk 0:00:44]}  Ke7 {[%clk 0:01:17]} 22. Bb5 {[%clk 0:00:29]}  Nd8 {[%clk 0:01:13]} 23. Rg2 {[%clk 0:00:22]}  c6 {[%clk 0:01:12]} 24. Be2 {[%clk 0:00:21]}  Ne6 {[%clk 0:01:13]} 25. Rg3 {[%clk 0:00:16]}  Rf2 {[%clk 0:01:11]} 26. Kc1 {[%clk 0:00:10]}  Raf8 {[%clk 0:01:09]} 27. h4 {[%clk 0:00:10]}  Nf4 {[%clk 0:01:09]} 28. g5 {[%clk 0:00:06]}  hxg5 {[%clk 0:01:09]} 29. hxg5 {[%clk 0:00:06]}  Rg8 {[%clk 0:01:06]} 30. Kd1 {[%clk 0:00:04]}  c5 {[%clk 0:01:06]} 31. Nh3 {[%clk 0:00:04]}  Rd8+ {[%clk 0:01:01]} 32. Kc2 {[%clk 0:00:01]}  Rxe2+ {[%clk 0:00:56]} 33. Rxe2 {[%clk 0:00:02]}  Nxe2 {[%clk 0:00:57]} 34. Rg2 {[%clk 0:00:03]}  Rh8 {[%clk 0:00:50]} 35. Rxe2 {[%clk 0:00:01]}  Rxh3 {[%clk 0:00:50]} 36. Rg2 {[%clk 0:00:02]}  Nf3 {[%clk 0:00:44]} 37. Kb3 {[%clk 0:00:01]}  Ne5 {[%clk 0:00:37]} 38. g6 {[%clk 0:00:01]}  Kf8 {[%clk 0:00:37]} 39. g7+ {[%clk 0:00:02]}  Kg8 {[%clk 0:00:37]} 40. a4 {[%clk 0:00:02]}  Rh5 {[%clk 0:00:35]} 41. Rg5 {[%clk 0:00:00]}  Rxg5 {[%clk 0:00:35]} 0-1

[Event "November 21 Early 2023"]
[Site "https://www.chess.com"]
[Date "2023.11.21"]
[Round "2"]
[White "Taboas Rodriguez, Daniel"]
[Black "Le, Tuan Minh"]
[Result "0-1"]
[Board "17"]
[TimeControl "180+1"]
[WhiteFideId "2208466"]
[BlackFideId "12401153"]
[WhiteElo "2365"]
[BlackElo "2561"]
[WhiteTeam "ESP"]
[BlackTeam "VIE"]
[WhiteClock "0:00:09"]
[BlackClock "0:00:12"]

1. d4 {[%clk 0:03:00]}  d5 {[%clk 0:02:59]} 2. Nf3 {[%clk 0:03:00]}  Nf6 {[%clk 0:02:59]} 3. c4 {[%clk 0:03:00]}  c6 {[%clk 0:02:59]} 4. cxd5 {[%clk 0:03:00]}  cxd5 {[%clk 0:02:59]} 5. Nc3 {[%clk 0:03:01]}  Nc6 {[%clk 0:02:59]} 6. Bf4 {[%clk 0:03:02]}  a6 {[%clk 0:02:59]} 7. Rc1 {[%clk 0:03:02]}  Bf5 {[%clk 0:02:57]} 8. e3 {[%clk 0:03:02]}  Rc8 {[%clk 0:02:57]} 9. Ne5 {[%clk 0:03:01]}  Bd7 {[%clk 0:02:34]} 10. Bd3 {[%clk 0:02:50]}  e6 {[%clk 0:02:34]} 11. O-O {[%clk 0:02:50]}  Be7 {[%clk 0:02:32]} 12. Qf3 {[%clk 0:02:50]}  O-O {[%clk 0:02:23]} 13. Qh3 {[%clk 0:02:49]}  g6 {[%clk 0:02:19]} 14. Bh6 {[%clk 0:02:47]}  Re8 {[%clk 0:02:17]} 15. f4 {[%clk 0:02:47]}  b5 {[%clk 0:01:50]} 16. Bg5 {[%clk 0:02:43]}  b4 {[%clk 0:01:42]} 17. Ne2 {[%clk 0:02:41]}  Ne4 {[%clk 0:01:37]} 18. Nxf7 {[%clk 0:02:21]}  Qa5 {[%clk 0:01:30]} 19. Ne5 {[%clk 0:01:31]}  Nxg5 {[%clk 0:01:08]} 20. fxg5 {[%clk 0:01:28]}  Nxe5 {[%clk 0:01:09]} 21. dxe5 {[%clk 0:01:26]}  Rxc1 {[%clk 0:01:09]} 22. Nxc1 {[%clk 0:01:18]}  Bxg5 {[%clk 0:01:08]} 23. Qf3 {[%clk 0:01:18]}  Qd8 {[%clk 0:01:06]} 24. Nb3 {[%clk 0:01:05]}  Bh6 {[%clk 0:00:47]} 25. Bxa6 {[%clk 0:00:57]}  Rf8 {[%clk 0:00:45]} 26. Qe2 {[%clk 0:00:51]}  Rxf1+ {[%clk 0:00:44]} 27. Kxf1 {[%clk 0:00:51]}  Qg5 {[%clk 0:00:38]} 28. Nc5 {[%clk 0:00:42]}  Be8 {[%clk 0:00:31]} 29. Bc8 {[%clk 0:00:27]}  Qf5+ {[%clk 0:00:24]} 30. Qf3 {[%clk 0:00:17]}  Qb1+ {[%clk 0:00:21]} 31. Kf2 {[%clk 0:00:18]}  Qc2+ {[%clk 0:00:21]} 32. Kg3 {[%clk 0:00:17]}  Qxc5 {[%clk 0:00:21]} 33. Bxe6+ {[%clk 0:00:17]}  Kh8 {[%clk 0:00:21]} 34. Qf6+ {[%clk 0:00:14]}  Bg7 {[%clk 0:00:21]} 35. Qd8 {[%clk 0:00:14]}  Qxe3+ {[%clk 0:00:16]} 36. Kg4 {[%clk 0:00:14]}  h5+ {[%clk 0:00:15]} 37. Kh4 {[%clk 0:00:14]}  Qf4+ {[%clk 0:00:12]} 38. Kh3 {[%clk 0:00:14]}  Qf8 {[%clk 0:00:13]} 39. Bxd5 {[%clk 0:00:13]}  Bxe5 {[%clk 0:00:11]} 40. Bc6 {[%clk 0:00:10]}  Qf5+ {[%clk 0:00:11]} 41. Kh4 {[%clk 0:00:09]}  Qg4# {[%clk 0:00:12]} 0-1

[Event "November 21 Early 2023"]
[Site "https://www.chess.com"]
[Date "2023.11.21"]
[Round "2"]
[White "Daneshvar, Bardiya"]
[Black "Souleidis, Georgios"]
[Result "1-0"]
[Board "18"]
[TimeControl "180+1"]
[WhiteFideId "12576468"]
[BlackFideId "4206827"]
[WhiteElo "2483"]
[BlackElo "2401"]
[WhiteTeam "IRI"]
[BlackTeam "GRE"]
[WhiteClock "0:01:30"]
[BlackClock "0:00:13"]

1. Nf3 {[%clk 0:03:00]}  Nf6 {[%clk 0:03:00]} 2. c4 {[%clk 0:03:00]}  g6 {[%clk 0:03:00]} 3. Nc3 {[%clk 0:03:01]}  Bg7 {[%clk 0:03:00]} 4. e4 {[%clk 0:03:01]}  d6 {[%clk 0:03:00]} 5. d4 {[%clk 0:03:02]}  O-O {[%clk 0:03:01]} 6. Be2 {[%clk 0:03:03]}  e5 {[%clk 0:03:01]} 7. O-O {[%clk 0:03:03]}  Bg4 {[%clk 0:03:01]} 8. d5 {[%clk 0:03:02]}  a5 {[%clk 0:03:01]} 9. h3 {[%clk 0:03:03]}  Bxf3 {[%clk 0:02:59]} 10. Bxf3 {[%clk 0:03:04]}  Na6 {[%clk 0:03:00]} 11. Be3 {[%clk 0:03:04]}  b6 {[%clk 0:03:00]} 12. a3 {[%clk 0:03:02]}  Nc5 {[%clk 0:02:56]} 13. Qc2 {[%clk 0:02:56]}  a4 {[%clk 0:02:56]} 14. Bxc5 {[%clk 0:02:55]}  bxc5 {[%clk 0:02:57]} 15. Nxa4 {[%clk 0:02:56]}  Nd7 {[%clk 0:02:56]} 16. b4 {[%clk 0:02:55]}  cxb4 {[%clk 0:02:53]} 17. axb4 {[%clk 0:02:56]}  f5 {[%clk 0:02:54]} 18. c5 {[%clk 0:02:53]}  Kh8 {[%clk 0:02:43]} 19. b5 {[%clk 0:02:36]}  fxe4 {[%clk 0:02:26]} 20. Bxe4 {[%clk 0:02:34]}  Nf6 {[%clk 0:02:25]} 21. b6 {[%clk 0:02:00]}  Nxe4 {[%clk 0:02:25]} 22. Qxe4 {[%clk 0:02:00]}  Rf4 {[%clk 0:02:25]} 23. Qc2 {[%clk 0:01:59]}  e4 {[%clk 0:02:17]} 24. b7 {[%clk 0:01:52]}  Rb8 {[%clk 0:02:07]} 25. c6 {[%clk 0:01:47]}  Bxa1 {[%clk 0:02:06]} 26. Rxa1 {[%clk 0:01:48]}  Qf6 {[%clk 0:01:51]} 27. Qb2 {[%clk 0:01:41]}  Rxf2 {[%clk 0:01:34]} 28. Qxf6+ {[%clk 0:01:40]}  Rxf6 {[%clk 0:01:34]} 29. Nc3 {[%clk 0:01:41]}  e3 {[%clk 0:01:32]} 30. Re1 {[%clk 0:01:36]}  Kg7 {[%clk 0:00:39]} 31. Rxe3 {[%clk 0:01:34]}  Kf8 {[%clk 0:00:32]} 32. Nb5 {[%clk 0:01:33]}  Rf7 {[%clk 0:00:33]} 33. Ra3 {[%clk 0:01:32]}  Ke7 {[%clk 0:00:22]} 34. Ra8 {[%clk 0:01:29]}  Rff8 {[%clk 0:00:22]} 35. Rxb8 {[%clk 0:01:29]}  Rxb8 {[%clk 0:00:13]} 36. Nxc7 {[%clk 0:01:30]} 1-0

[Event "November 21 Early 2023"]
[Site "https://www.chess.com"]
[Date "2023.11.21"]
[Round "2"]
[White "Pranesh M"]
[Black "Al-Tarboush, Ward"]
[Result "1-0"]
[Board "20"]
[TimeControl "180+1"]
[WhiteFideId "35028600"]
[BlackFideId "7601450"]
[WhiteElo "2481"]
[BlackElo "2280"]
[WhiteTeam "IND"]
[BlackTeam "NOR"]
[WhiteClock "0:01:48"]
[BlackClock "0:00:56"]

1. e4 {[%clk 0:03:00]}  e6 {[%clk 0:02:59]} 2. d4 {[%clk 0:03:00]}  d5 {[%clk 0:02:59]} 3. Nd2 {[%clk 0:03:01]}  c5 {[%clk 0:02:59]} 4. exd5 {[%clk 0:02:59]}  Qxd5 {[%clk 0:02:59]} 5. Ngf3 {[%clk 0:03:00]}  cxd4 {[%clk 0:02:58]} 6. Bc4 {[%clk 0:03:00]}  Qd6 {[%clk 0:02:59]} 7. O-O {[%clk 0:03:00]}  Nf6 {[%clk 0:02:59]} 8. Nb3 {[%clk 0:03:00]}  Nc6 {[%clk 0:02:59]} 9. Qe2 {[%clk 0:03:00]}  Be7 {[%clk 0:02:56]} 10. Rd1 {[%clk 0:03:01]}  O-O {[%clk 0:02:56]} 11. Nbxd4 {[%clk 0:03:01]}  Nxd4 {[%clk 0:02:56]} 12. Rxd4 {[%clk 0:03:02]}  Qc5 {[%clk 0:02:53]} 13. Be3 {[%clk 0:02:59]}  Qh5 {[%clk 0:02:51]} 14. Rh4 {[%clk 0:02:58]}  Qa5 {[%clk 0:02:46]} 15. Bd4 {[%clk 0:02:52]}  b5 {[%clk 0:02:38]} 16. Bd3 {[%clk 0:02:41]}  g6 {[%clk 0:02:29]} 17. Ng5 {[%clk 0:02:34]}  b4 {[%clk 0:02:07]} 18. Qe3 {[%clk 0:02:18]}  Bb7 {[%clk 0:01:31]} 19. Nxh7 {[%clk 0:02:01]}  Nxh7 {[%clk 0:00:56]} 20. Qh6 {[%clk 0:01:48]} 1-0

[Event "November 21 Early 2023"]
[Site "https://www.chess.com"]
[Date "2023.11.21"]
[Round "2"]
[White "Belov, Alexei"]
[Black "Bharath Subramaniyam H"]
[Result "0-1"]
[Board "21"]
[TimeControl "180+1"]
[WhiteFideId "4128206"]
[BlackFideId "46634827"]
[WhiteElo "2622"]
[BlackElo "2435"]
[WhiteTeam "RUS"]
[BlackTeam "IND"]
[WhiteClock "0:00:10"]
[BlackClock "0:00:25"]

1. e4 {[%clk 0:03:00]}  c5 {[%clk 0:02:59]} 2. Nf3 {[%clk 0:03:00]}  d6 {[%clk 0:03:00]} 3. d4 {[%clk 0:03:01]}  cxd4 {[%clk 0:03:01]} 4. Nxd4 {[%clk 0:03:01]}  Nf6 {[%clk 0:03:01]} 5. Nc3 {[%clk 0:03:01]}  a6 {[%clk 0:03:02]} 6. Be2 {[%clk 0:03:01]}  e5 {[%clk 0:03:02]} 7. Nb3 {[%clk 0:03:02]}  Be7 {[%clk 0:03:02]} 8. O-O {[%clk 0:03:02]}  O-O {[%clk 0:03:03]} 9. Kh1 {[%clk 0:03:02]}  Nc6 {[%clk 0:03:03]} 10. f4 {[%clk 0:03:01]}  Re8 {[%clk 0:03:03]} 11. a4 {[%clk 0:02:56]}  b6 {[%clk 0:03:02]} 12. Nd5 {[%clk 0:02:48]}  Bb7 {[%clk 0:02:50]} 13. Be3 {[%clk 0:02:35]}  Nxd5 {[%clk 0:02:48]} 14. exd5 {[%clk 0:02:35]}  Nb4 {[%clk 0:02:46]} 15. c4 {[%clk 0:02:12]}  Bf6 {[%clk 0:02:40]} 16. a5 {[%clk 0:02:07]}  b5 {[%clk 0:01:46]} 17. Qd2 {[%clk 0:01:28]}  exf4 {[%clk 0:01:46]} 18. Bb6 {[%clk 0:01:22]}  Qe7 {[%clk 0:01:45]} 19. Rae1 {[%clk 0:00:51]}  Bh4 {[%clk 0:01:45]} 20. Qxb4 {[%clk 0:00:45]}  Bxe1 {[%clk 0:01:44]} 21. Rxe1 {[%clk 0:00:46]}  f3 {[%clk 0:01:14]} 22. gxf3 {[%clk 0:00:43]}  Rac8 {[%clk 0:01:05]} 23. Bf2 {[%clk 0:00:34]}  bxc4 {[%clk 0:00:55]} 24. Bxc4 {[%clk 0:00:34]}  Qd7 {[%clk 0:00:51]} 25. Rxe8+ {[%clk 0:00:30]}  Rxe8 {[%clk 0:00:52]} 26. Nd4 {[%clk 0:00:27]}  h5 {[%clk 0:00:46]} 27. Kg2 {[%clk 0:00:25]}  Bc8 {[%clk 0:00:46]} 28. Bf1 {[%clk 0:00:18]}  Re5 {[%clk 0:00:43]} 29. f4 {[%clk 0:00:17]}  Re4 {[%clk 0:00:36]} 30. Qb8 {[%clk 0:00:15]}  Rxf4 {[%clk 0:00:26]} 31. Nc6 {[%clk 0:00:14]}  Qg4+ {[%clk 0:00:25]} 32. Bg3 {[%clk 0:00:10]}  Qf3+ {[%clk 0:00:25]} 0-1

[Event "November 21 Early 2023"]
[Site "https://www.chess.com"]
[Date "2023.11.21"]
[Round "2"]
[White "Khumalo, Keith"]
[Black "Van Foreest, Jorden"]
[Result "0-1"]
[Board "23"]
[TimeControl "180+1"]
[WhiteFideId "14319470"]
[BlackFideId "1039784"]
[WhiteElo "2093"]
[BlackElo "2664"]
[WhiteTeam "RSA"]
[BlackTeam "NED"]
[WhiteClock "0:00:42"]
[BlackClock "0:01:00"]

1. d4 {[%clk 0:02:57]}  Nf6 {[%clk 0:02:58]} 2. c4 {[%clk 0:02:58]}  g6 {[%clk 0:02:59]} 3. Nc3 {[%clk 0:02:58]}  d5 {[%clk 0:02:59]} 4. Bg5 {[%clk 0:02:58]}  Ne4 {[%clk 0:02:59]} 5. Bf4 {[%clk 0:02:59]}  Nxc3 {[%clk 0:02:58]} 6. bxc3 {[%clk 0:03:00]}  Bg7 {[%clk 0:02:58]} 7. e3 {[%clk 0:03:01]}  c5 {[%clk 0:02:59]} 8. Nf3 {[%clk 0:03:01]}  O-O {[%clk 0:02:59]} 9. cxd5 {[%clk 0:03:01]}  Qxd5 {[%clk 0:02:58]} 10. Be2 {[%clk 0:03:02]}  b6 {[%clk 0:02:58]} 11. O-O {[%clk 0:03:02]}  Bb7 {[%clk 0:02:54]} 12. a4 {[%clk 0:03:02]}  Nc6 {[%clk 0:02:54]} 13. Qb1 {[%clk 0:02:56]}  Na5 {[%clk 0:02:48]} 14. Rd1 {[%clk 0:02:55]}  Rac8 {[%clk 0:02:47]} 15. Ne1 {[%clk 0:02:47]}  Rfd8 {[%clk 0:02:43]} 16. Bf3 {[%clk 0:02:46]}  Qd7 {[%clk 0:02:43]} 17. Bxb7 {[%clk 0:02:46]}  Qxb7 {[%clk 0:02:44]} 18. Qb5 {[%clk 0:02:41]}  cxd4 {[%clk 0:02:41]} 19. cxd4 {[%clk 0:02:41]}  Qc6 {[%clk 0:02:32]} 20. Nd3 {[%clk 0:02:36]}  Qe4 {[%clk 0:02:24]} 21. Rac1 {[%clk 0:02:27]}  f6 {[%clk 0:02:16]} 22. f3 {[%clk 0:02:25]}  Qe6 {[%clk 0:02:15]} 23. Rxc8 {[%clk 0:02:13]}  Rxc8 {[%clk 0:02:14]} 24. e4 {[%clk 0:02:13]}  Qa2 {[%clk 0:02:07]} 25. Rd2 {[%clk 0:02:08]}  Qa1+ {[%clk 0:02:05]} 26. Kf2 {[%clk 0:02:04]}  Qxd4+ {[%clk 0:02:03]} 27. Be3 {[%clk 0:02:05]}  Qc4 {[%clk 0:02:02]} 28. Qd7 {[%clk 0:02:03]}  Nb3 {[%clk 0:01:56]} 29. Rb2 {[%clk 0:01:57]}  f5 {[%clk 0:01:57]} 30. Rxb3 {[%clk 0:01:56]}  fxe4 {[%clk 0:01:56]} 31. Ra3 {[%clk 0:01:34]}  Qc2+ {[%clk 0:01:54]} 32. Kg3 {[%clk 0:01:32]}  exd3 {[%clk 0:01:53]} 33. Rxd3 {[%clk 0:01:33]}  Qc7+ {[%clk 0:01:45]} 34. Bf4 {[%clk 0:01:28]}  Qc4 {[%clk 0:01:43]} 35. Qxe7 {[%clk 0:01:23]}  Rf8 {[%clk 0:01:36]} 36. Qe4 {[%clk 0:01:15]}  Qf7 {[%clk 0:01:26]} 37. Qd5 {[%clk 0:01:11]}  Bf6 {[%clk 0:01:25]} 38. Qxf7+ {[%clk 0:01:10]}  Rxf7 {[%clk 0:01:26]} 39. Be3 {[%clk 0:01:02]}  Re7 {[%clk 0:01:24]} 40. Kf2 {[%clk 0:01:01]}  Kf7 {[%clk 0:01:24]} 41. g4 {[%clk 0:01:01]}  Rc7 {[%clk 0:01:20]} 42. f4 {[%clk 0:01:01]}  Ke6 {[%clk 0:01:20]} 43. Kf3 {[%clk 0:00:58]}  Rc4 {[%clk 0:01:21]} 44. Ra3 {[%clk 0:00:58]}  Bd4 {[%clk 0:01:15]} 45. Bd2 {[%clk 0:00:58]}  Bc5 {[%clk 0:01:15]} 46. Ra2 {[%clk 0:00:57]}  a5 {[%clk 0:01:16]} 47. h3 {[%clk 0:00:55]}  Kd5 {[%clk 0:01:15]} 48. h4 {[%clk 0:00:53]}  Rd4 {[%clk 0:01:10]} 49. h5 {[%clk 0:00:50]}  Rd3+ {[%clk 0:01:10]} 50. Ke2 {[%clk 0:00:50]}  Rg3 {[%clk 0:01:10]} 51. hxg6 {[%clk 0:00:51]}  hxg6 {[%clk 0:01:11]} 52. g5 {[%clk 0:00:51]}  Ke4 {[%clk 0:01:11]} 53. Rc2 {[%clk 0:00:46]}  Rg2+ {[%clk 0:01:05]} 54. Kf1 {[%clk 0:00:46]}  Rh2 {[%clk 0:01:01]} 55. Rc4+ {[%clk 0:00:46]}  Kd3 {[%clk 0:01:00]} 56. Rc3+ {[%clk 0:00:42]}  Kxd2 {[%clk 0:01:00]} 0-1

[Event "November 21 Early 2023"]
[Site "https://www.chess.com"]
[Date "2023.11.21"]
[Round "2"]
[White "Khismatullin, Denis"]
[Black "Gontcharov, Vladislav"]
[Result "1-0"]
[Board "24"]
[TimeControl "180+1"]
[WhiteFideId "4142578"]
[BlackFideId "4123492"]
[WhiteElo "2552"]
[BlackElo "2420"]
[WhiteTeam "RUS"]
[BlackTeam "RUS"]
[WhiteClock "0:00:34"]
[BlackClock "0:00:00"]

1. e4 {[%clk 0:03:00]}  e6 {[%clk 0:02:59]} 2. d4 {[%clk 0:02:59]}  d5 {[%clk 0:02:59]} 3. Nc3 {[%clk 0:02:58]}  Nc6 {[%clk 0:02:57]} 4. Nf3 {[%clk 0:02:55]}  Nf6 {[%clk 0:02:56]} 5. Bg5 {[%clk 0:02:50]}  Bb4 {[%clk 0:02:38]} 6. Bd3 {[%clk 0:02:45]}  h6 {[%clk 0:02:18]} 7. Bxf6 {[%clk 0:02:45]}  Qxf6 {[%clk 0:02:17]} 8. O-O {[%clk 0:02:45]}  Bxc3 {[%clk 0:01:58]} 9. bxc3 {[%clk 0:02:44]}  O-O {[%clk 0:01:56]} 10. Re1 {[%clk 0:02:43]}  Bd7 {[%clk 0:01:34]} 11. Qe2 {[%clk 0:02:42]}  Rfe8 {[%clk 0:01:29]} 12. e5 {[%clk 0:02:38]}  Qe7 {[%clk 0:01:28]} 13. a4 {[%clk 0:02:36]}  Na5 {[%clk 0:01:25]} 14. Qe3 {[%clk 0:02:30]}  c5 {[%clk 0:01:23]} 15. h4 {[%clk 0:02:20]}  Rac8 {[%clk 0:01:19]} 16. Qf4 {[%clk 0:02:20]}  cxd4 {[%clk 0:00:54]} 17. cxd4 {[%clk 0:02:20]}  Nc4 {[%clk 0:00:54]} 18. Nh2 {[%clk 0:02:04]}  Kh8 {[%clk 0:00:46]} 19. g3 {[%clk 0:01:46]}  Nb2 {[%clk 0:00:40]} 20. Ng4 {[%clk 0:01:46]}  Nxd3 {[%clk 0:00:37]} 21. cxd3 {[%clk 0:01:45]}  Qf8 {[%clk 0:00:34]} 22. Re3 {[%clk 0:01:40]}  Rc7 {[%clk 0:00:19]} 23. Rf3 {[%clk 0:01:38]}  Bc8 {[%clk 0:00:18]} 24. Kg2 {[%clk 0:01:28]}  Qg8 {[%clk 0:00:18]} 25. a5 {[%clk 0:01:08]}  Qh7 {[%clk 0:00:19]} 26. Qd2 {[%clk 0:01:07]}  Rd8 {[%clk 0:00:19]} 27. Qb4 {[%clk 0:01:04]}  Qg8 {[%clk 0:00:18]} 28. Rf4 {[%clk 0:00:52]}  Qf8 {[%clk 0:00:18]} 29. Qd2 {[%clk 0:00:50]}  Bd7 {[%clk 0:00:16]} 30. Re1 {[%clk 0:00:46]}  Rdc8 {[%clk 0:00:16]} 31. Rf6 {[%clk 0:00:37]}  gxf6 {[%clk 0:00:12]} 32. exf6 {[%clk 0:00:38]}  Be8 {[%clk 0:00:11]} 33. Re5 {[%clk 0:00:35]}  Rc2 {[%clk 0:00:08]} 34. Qf4 {[%clk 0:00:35]}  Ra2 {[%clk 0:00:00]} 35. Rh5 {[%clk 0:00:34]} 1-0

[Event "November 21 Early 2023"]
[Site "https://www.chess.com"]
[Date "2023.11.21"]
[Round "2"]
[White "Principe, Gerson"]
[Black "Alekseenko, Kirill"]
[Result "0-1"]
[Board "25"]
[TimeControl "180+1"]
[WhiteFideId "3804550"]
[BlackFideId "4135539"]
[WhiteElo "2186"]
[BlackElo "2667"]
[WhiteTeam "PER"]
[BlackTeam "AUT"]
[WhiteClock "0:00:06"]
[BlackClock "0:00:05"]

1. d4 {[%clk 0:02:59]}  d5 {[%clk 0:03:00]} 2. e3 {[%clk 0:03:00]}  Nf6 {[%clk 0:02:57]} 3. Nf3 {[%clk 0:03:01]}  Bg4 {[%clk 0:02:57]} 4. Be2 {[%clk 0:03:02]}  e6 {[%clk 0:02:56]} 5. O-O {[%clk 0:03:02]}  Bd6 {[%clk 0:02:50]} 6. b3 {[%clk 0:03:02]}  Nbd7 {[%clk 0:02:48]} 7. Bb2 {[%clk 0:03:03]}  O-O {[%clk 0:02:45]} 8. Nbd2 {[%clk 0:03:02]}  Qe7 {[%clk 0:02:32]} 9. Ne5 {[%clk 0:02:47]}  Bxe2 {[%clk 0:02:32]} 10. Qxe2 {[%clk 0:02:48]}  c5 {[%clk 0:02:33]} 11. c4 {[%clk 0:02:37]}  Rac8 {[%clk 0:02:28]} 12. Nxd7 {[%clk 0:02:31]}  Nxd7 {[%clk 0:02:03]} 13. cxd5 {[%clk 0:02:29]}  exd5 {[%clk 0:01:58]} 14. dxc5 {[%clk 0:02:28]}  Nxc5 {[%clk 0:01:58]} 15. Rfd1 {[%clk 0:02:24]}  Rfd8 {[%clk 0:01:52]} 16. Rac1 {[%clk 0:02:16]}  f6 {[%clk 0:01:50]} 17. Bd4 {[%clk 0:02:04]}  b6 {[%clk 0:01:50]} 18. g3 {[%clk 0:01:56]}  Be5 {[%clk 0:01:48]} 19. Nf3 {[%clk 0:01:52]}  Qe6 {[%clk 0:01:24]} 20. Qb2 {[%clk 0:01:45]}  Re8 {[%clk 0:01:22]} 21. b4 {[%clk 0:01:33]}  Nd7 {[%clk 0:01:22]} 22. Rxc8 {[%clk 0:01:31]}  Rxc8 {[%clk 0:01:22]} 23. Qd2 {[%clk 0:00:56]}  Rd8 {[%clk 0:00:48]} 24. Bb2 {[%clk 0:00:36]}  Bxb2 {[%clk 0:00:47]} 25. Qxb2 {[%clk 0:00:37]}  Ne5 {[%clk 0:00:47]} 26. Nxe5 {[%clk 0:00:27]}  fxe5 {[%clk 0:00:48]} 27. Qb3 {[%clk 0:00:27]}  Kf7 {[%clk 0:00:48]} 28. f4 {[%clk 0:00:23]}  d4 {[%clk 0:00:42]} 29. Qc2 {[%clk 0:00:18]}  Rd7 {[%clk 0:00:25]} 30. fxe5 {[%clk 0:00:16]}  dxe3 {[%clk 0:00:25]} 31. Rf1+ {[%clk 0:00:14]}  Ke7 {[%clk 0:00:19]} 32. Qxh7 {[%clk 0:00:11]}  Qxe5 {[%clk 0:00:20]} 33. Qg6 {[%clk 0:00:04]}  e2 {[%clk 0:00:11]} 34. Qf7+ {[%clk 0:00:05]}  Kd8 {[%clk 0:00:11]} 35. Qf8+ {[%clk 0:00:04]}  Qe8 {[%clk 0:00:06]} 36. Qxe8+ {[%clk 0:00:03]}  Kxe8 {[%clk 0:00:07]} 37. Re1 {[%clk 0:00:03]}  Rd2 {[%clk 0:00:06]} 38. Kf2 {[%clk 0:00:04]}  Rxa2 {[%clk 0:00:06]} 39. Rxe2+ {[%clk 0:00:05]}  Rxe2+ {[%clk 0:00:07]} 40. Kxe2 {[%clk 0:00:05]}  Kf7 {[%clk 0:00:02]} 41. Ke3 {[%clk 0:00:03]}  Ke6 {[%clk 0:00:02]} 42. Ke4 {[%clk 0:00:03]}  a5 {[%clk 0:00:03]} 43. bxa5 {[%clk 0:00:03]}  bxa5 {[%clk 0:00:04]} 44. h3 {[%clk 0:00:03]}  a4 {[%clk 0:00:02]} 45. Kd4 {[%clk 0:00:03]}  Kf5 {[%clk 0:00:03]} 46. Kc4 {[%clk 0:00:02]}  Ke4 {[%clk 0:00:04]} 47. Kb4 {[%clk 0:00:02]}  Kf3 {[%clk 0:00:04]} 48. g4 {[%clk 0:00:02]}  Kg3 {[%clk 0:00:04]} 49. Kxa4 {[%clk 0:00:03]}  Kxh3 {[%clk 0:00:05]} 50. g5 {[%clk 0:00:04]}  Kg4 {[%clk 0:00:06]} 51. g6 {[%clk 0:00:04]}  Kg5 {[%clk 0:00:06]} 52. Kb4 {[%clk 0:00:05]}  Kxg6 {[%clk 0:00:07]} 53. Kc3 {[%clk 0:00:06]}  Kf5 {[%clk 0:00:07]} 54. Kd3 {[%clk 0:00:06]}  Kf4 {[%clk 0:00:08]} 55. Ke2 {[%clk 0:00:07]}  Kg3 {[%clk 0:00:08]} 56. Kf1 {[%clk 0:00:07]}  g5 {[%clk 0:00:08]} 57. Kg1 {[%clk 0:00:06]}  g4 {[%clk 0:00:06]} 58. Kh1 {[%clk 0:00:05]}  Kh3 {[%clk 0:00:06]} 59. Kg1 {[%clk 0:00:06]}  Kg3 {[%clk 0:00:04]} 60. Kh1 {[%clk 0:00:06]}  Kf2 {[%clk 0:00:04]} 61. Kh2 {[%clk 0:00:06]}  g3+ {[%clk 0:00:05]} 62. Kh1 {[%clk 0:00:06]}  g2+ {[%clk 0:00:05]} 0-1